[Event "*** SCC Grand Prix: Titled Tuesday Blitz"]
[Site "Chess.com"]
[Date "2020.06.23"]
[Round "6"]
[White "MasterKroket"]
[Black "KingChess345"]
[Result "1-0"]
[WhiteElo "2397"]
[BlackElo "2171"]
[TimeControl "180+1"]
[EndTime "11:04:23 PDT"]
[Termination "MasterKroket won by resignation"]

1. d4 {[%clk 0:03:00.9]} 1... Nf6 {[%clk 0:02:59.4]} 2. c4 {[%clk 0:03:01.6]}
2... e6 {[%clk 0:02:59.6]} 3. Nf3 {[%clk 0:03:02.2]} 3... Bb4+ {[%clk
0:02:59.6]} 4. Bd2 {[%clk 0:03:02.3]} 4... Qe7 {[%clk 0:03:00.1]} 5. g3 {[%clk
0:03:02.2]} 5... Bxd2+ {[%clk 0:02:57.1]} 6. Nbxd2 {[%clk 0:03:01.7]} 6... d6
{[%clk 0:02:56.4]} 7. Bg2 {[%clk 0:03:02]} 7... e5 {[%clk 0:02:56.4]} 8. dxe5
{[%clk 0:03:01.7]} 8... dxe5 {[%clk 0:02:57.3]} 9. e3 {[%clk 0:02:41.8]} 9...
O-O {[%clk 0:02:53.1]} 10. O-O {[%clk 0:02:41.4]} 10... Bg4 {[%clk 0:02:47.5]}
11. Qc2 {[%clk 0:02:39.9]} 11... Nc6 {[%clk 0:02:45.5]} 12. a3 {[%clk
0:02:39.7]} 12... a5 {[%clk 0:02:44]} 13. Ng5 {[%clk 0:02:35.8]} 13... Rad8
{[%clk 0:02:33]} 14. Nde4 {[%clk 0:02:34.8]} 14... Bf5 {[%clk 0:02:20.8]} 15.
Nxf6+ {[%clk 0:02:09.4]} 15... Qxf6 {[%clk 0:02:21.7]} 16. Be4 {[%clk
0:02:09.8]} 16... g6 {[%clk 0:01:42.8]} 17. Bxf5 {[%clk 0:02:06.9]} 17... gxf5
{[%clk 0:01:43.7]} 18. Nf3 {[%clk 0:01:56.3]} 18... e4 {[%clk 0:01:43.9]} 19.
Nh4 {[%clk 0:01:55.3]} 19... Ne5 {[%clk 0:01:43.2]} 20. f3 {[%clk 0:01:48.9]}
20... Qb6 {[%clk 0:01:26.6]} 21. Nxf5 {[%clk 0:01:46.7]} 21... Nxf3+ {[%clk
0:01:22.5]} 22. Rxf3 {[%clk 0:01:35.2]} 22... exf3 {[%clk 0:01:23.4]} 23. Rf1
{[%clk 0:01:29.6]} 23... Rfe8 {[%clk 0:01:16.8]} 24. Rxf3 {[%clk 0:01:29.9]}
24... Qg6 {[%clk 0:01:15.8]} 25. Rf4 {[%clk 0:01:18.7]} 25... Re5 {[%clk
0:01:10]} 26. Rg4 {[%clk 0:01:14.2]} 26... Rxf5 {[%clk 0:00:56.9]} 27. Qxf5
{[%clk 0:01:14.3]} 27... Rd1+ {[%clk 0:00:53.1]} 28. Kf2 {[%clk 0:01:13.4]}
28... Rd2+ {[%clk 0:00:51.7]} 29. Ke1 {[%clk 0:01:13.4]} 29... Rxb2 {[%clk
0:00:49.4]} 30. Rxg6+ {[%clk 0:01:13.3]} 30... hxg6 {[%clk 0:00:50.3]} 31. Qc8+
{[%clk 0:01:13]} 31... Kg7 {[%clk 0:00:50.2]} 32. Qxc7 {[%clk 0:01:12.9]} 32...
Rxh2 {[%clk 0:00:50.2]} 33. Qxb7 {[%clk 0:01:12.8]} 1-0

[Event "*** SCC Grand Prix: Titled Tuesday Blitz"]
[Site "Chess.com"]
[Date "2020.06.23"]
[Round "6"]
[White "AGW2016"]
[Black "XiaoKangZhong"]
[Result "0-1"]
[WhiteElo "2237"]
[BlackElo "2409"]
[TimeControl "180+1"]
[EndTime "11:04:25 PDT"]
[Termination "XiaoKangZhong won by resignation"]

1. e4 {[%clk 0:03:00.9]} 1... c6 {[%clk 0:02:59.3]} 2. Nc3 {[%clk 0:02:59.2]}
2... d5 {[%clk 0:02:56.4]} 3. Nf3 {[%clk 0:02:52.7]} 3... dxe4 {[%clk
0:02:54.4]} 4. Nxe4 {[%clk 0:02:47.4]} 4... Nf6 {[%clk 0:02:55.3]} 5. Nxf6+
{[%clk 0:02:47.5]} 5... exf6 {[%clk 0:02:56.2]} 6. d4 {[%clk 0:02:48]} 6... Bd6
{[%clk 0:02:56.3]} 7. Bd3 {[%clk 0:02:48.1]} 7... O-O {[%clk 0:02:56.8]} 8. O-O
{[%clk 0:02:48.4]} 8... Qc7 {[%clk 0:02:56.7]} 9. h3 {[%clk 0:02:47.7]} 9... Nd7
{[%clk 0:02:52.5]} 10. c4 {[%clk 0:02:39.7]} 10... Rd8 {[%clk 0:02:49.6]} 11. b3
{[%clk 0:02:38.7]} 11... Nf8 {[%clk 0:02:49.1]} 12. Bb2 {[%clk 0:02:17.4]} 12...
Ng6 {[%clk 0:02:48.1]} 13. Bxg6 {[%clk 0:02:01.9]} 13... hxg6 {[%clk 0:02:46.1]}
14. d5 {[%clk 0:01:59.2]} 14... cxd5 {[%clk 0:02:43.1]} 15. cxd5 {[%clk
0:01:58.8]} 15... Bf5 {[%clk 0:02:35.9]} 16. Rc1 {[%clk 0:01:58.4]} 16... Qa5
{[%clk 0:02:26.5]} 17. Nd4 {[%clk 0:01:53]} 17... Qxd5 {[%clk 0:02:19.2]} 18.
Nxf5 {[%clk 0:01:51]} 18... Qxf5 {[%clk 0:02:15.6]} 19. Qe2 {[%clk 0:01:51]}
19... Re8 {[%clk 0:02:10.2]} 20. Qc4 {[%clk 0:01:36.2]} 20... Rac8 {[%clk
0:02:06.8]} 21. Qa4 {[%clk 0:01:36.6]} 21... Re2 {[%clk 0:01:55.9]} 22. Rxc8+
{[%clk 0:01:26.6]} 22... Qxc8 {[%clk 0:01:56.8]} 23. Bd4 {[%clk 0:01:25.5]}
23... a6 {[%clk 0:01:51.9]} 24. Be3 {[%clk 0:01:24]} 24... g5 {[%clk 0:01:37.1]}
25. Rd1 {[%clk 0:01:22.8]} 25... Bc5 {[%clk 0:01:23.8]} 26. Rc1 {[%clk
0:01:01.7]} 26... Rxe3 {[%clk 0:01:14.9]} 27. Qd4 {[%clk 0:00:48.1]} 27... Re1+
{[%clk 0:00:57.9]} 0-1

[Event "*** SCC Grand Prix: Titled Tuesday Blitz"]
[Site "Chess.com"]
[Date "2020.06.23"]
[Round "6"]
[White "doons21"]
[Black "IMHansNiemann"]
[Result "0-1"]
[WhiteElo "2548"]
[BlackElo "2957"]
[TimeControl "180+1"]
[EndTime "11:04:26 PDT"]
[Termination "IMHansNiemann won by resignation"]

1. e4 {[%clk 0:03:00.9]} 1... e6 {[%clk 0:02:59.7]} 2. d3 {[%clk 0:02:58.8]}
2... d5 {[%clk 0:02:59.8]} 3. Nd2 {[%clk 0:02:56.8]} 3... c5 {[%clk 0:02:58.6]}
4. Ngf3 {[%clk 0:02:56.8]} 4... Nc6 {[%clk 0:02:58.4]} 5. g3 {[%clk 0:02:57]}
5... Bd6 {[%clk 0:02:58.8]} 6. Bg2 {[%clk 0:02:57.2]} 6... Nge7 {[%clk 0:02:58]}
7. O-O {[%clk 0:02:57.6]} 7... O-O {[%clk 0:02:58.1]} 8. Re1 {[%clk 0:02:58]}
8... Qc7 {[%clk 0:02:57]} 9. c3 {[%clk 0:02:52.1]} 9... b5 {[%clk 0:02:55.2]}
10. a4 {[%clk 0:02:51.8]} 10... b4 {[%clk 0:02:53.6]} 11. Nf1 {[%clk 0:02:43.1]}
11... a5 {[%clk 0:02:49.1]} 12. Ne3 {[%clk 0:02:30.1]} 12... Ba6 {[%clk
0:02:47.4]} 13. exd5 {[%clk 0:02:29.8]} 13... exd5 {[%clk 0:02:45.6]} 14. d4
{[%clk 0:02:30]} 14... Rad8 {[%clk 0:02:41.3]} 15. Nh4 {[%clk 0:02:23]} 15...
bxc3 {[%clk 0:02:36.3]} 16. bxc3 {[%clk 0:02:21.3]} 16... cxd4 {[%clk
0:02:34.2]} 17. cxd4 {[%clk 0:02:19.8]} 17... Nxd4 {[%clk 0:02:24]} 18. Qxd4
{[%clk 0:01:41.2]} 18... Be5 {[%clk 0:02:22.6]} 19. Qg4 {[%clk 0:01:41.5]} 19...
Bxa1 {[%clk 0:02:21.8]} 20. Nef5 {[%clk 0:01:41.9]} 20... Nxf5 {[%clk
0:02:18.4]} 21. Nxf5 {[%clk 0:01:40.6]} 21... Bc8 {[%clk 0:02:11.6]} 22. Ba3
{[%clk 0:01:01.5]} 22... Bxf5 {[%clk 0:02:08.8]} 23. Qxf5 {[%clk 0:00:57.9]}
23... Qc3 {[%clk 0:02:02]} 24. Re3 {[%clk 0:00:57.5]} 24... Qf6 {[%clk
0:01:55.2]} 25. Qd3 {[%clk 0:00:57.4]} 25... Rfe8 {[%clk 0:01:51.9]} 26. Bxd5
{[%clk 0:00:53.1]} 26... Rxe3 {[%clk 0:01:48.7]} 27. Qxe3 {[%clk 0:00:53]} 27...
Bd4 {[%clk 0:01:45.9]} 28. Qf3 {[%clk 0:00:40.8]} 28... Bxf2+ {[%clk 0:01:40.4]}
29. Kg2 {[%clk 0:00:40.6]} 29... Qxf3+ {[%clk 0:01:38.2]} 30. Bxf3 {[%clk
0:00:40.4]} 30... Rd2 {[%clk 0:01:38.1]} 31. Bc1 {[%clk 0:00:35.1]} 31... Rc2
{[%clk 0:01:35.1]} 32. Bf4 {[%clk 0:00:31.3]} 32... Be3+ {[%clk 0:01:33.9]} 33.
Kh3 {[%clk 0:00:31.5]} 33... Bxf4 {[%clk 0:01:33.6]} 34. gxf4 {[%clk 0:00:32.4]}
34... Rc4 {[%clk 0:01:31.2]} 0-1

[Event "*** SCC Grand Prix: Titled Tuesday Blitz"]
[Site "Chess.com"]
[Date "2020.06.23"]
[Round "6"]
[White "FMOlexandrProhorov"]
[Black "Ural_bogatyr"]
[Result "1-0"]
[WhiteElo "2118"]
[BlackElo "2312"]
[TimeControl "180+1"]
[EndTime "11:04:31 PDT"]
[Termination "FMOlexandrProhorov won by resignation"]

1. e4 {[%clk 0:03:00.9]} 1... e5 {[%clk 0:02:53]} 2. Nf3 {[%clk 0:03:00.1]} 2...
Nc6 {[%clk 0:02:52.4]} 3. c3 {[%clk 0:02:57.4]} 3... Nf6 {[%clk 0:02:51.8]} 4.
d4 {[%clk 0:02:57]} 4... Nxe4 {[%clk 0:02:50.6]} 5. d5 {[%clk 0:02:49.5]} 5...
Bc5 {[%clk 0:02:50.4]} 6. dxc6 {[%clk 0:02:39.2]} 6... Bxf2+ {[%clk 0:02:49.3]}
7. Ke2 {[%clk 0:02:39.1]} 7... Bb6 {[%clk 0:02:28.4]} 8. Qd5 {[%clk 0:02:33.2]}
8... Nf2 {[%clk 0:01:48.5]} 9. Qxe5+ {[%clk 0:02:27.6]} 9... Kf8 {[%clk
0:01:46.1]} 10. Be3 {[%clk 0:02:18.3]} 10... Ng4 {[%clk 0:01:41.6]} 11. Qg5
{[%clk 0:02:00.1]} 11... Qe8 {[%clk 0:01:22.9]} 12. Qxg4 {[%clk 0:01:58.6]}
12... Qxe3+ {[%clk 0:01:22.3]} 13. Kd1 {[%clk 0:01:59.5]} 13... dxc6 {[%clk
0:01:22.2]} 14. Qg5 {[%clk 0:01:49]} 14... Qxg5 {[%clk 0:01:00.8]} 15. Nxg5
{[%clk 0:01:48.9]} 15... Bg4+ {[%clk 0:01:01.7]} 16. Kc2 {[%clk 0:01:44.3]}
16... Rd8 {[%clk 0:00:58.6]} 17. Bc4 {[%clk 0:01:35.9]} 17... Bf5+ {[%clk
0:00:52.4]} 18. Kb3 {[%clk 0:01:35.5]} 18... a5 {[%clk 0:00:43.5]} 19. a4 {[%clk
0:01:34.7]} 19... Bg6 {[%clk 0:00:35.4]} 20. Rf1 {[%clk 0:01:33.5]} 20... Rd7
{[%clk 0:00:35.4]} 21. Na3 {[%clk 0:01:32.6]} 21... f6 {[%clk 0:00:35.2]} 22.
Ne6+ {[%clk 0:01:31.5]} 22... Ke7 {[%clk 0:00:34.6]} 23. Nxg7 {[%clk 0:01:30]}
23... Kd8 {[%clk 0:00:34]} 24. Rad1 {[%clk 0:01:24.8]} 1-0

[Event "*** SCC Grand Prix: Titled Tuesday Blitz"]
[Site "Chess.com"]
[Date "2020.06.23"]
[Round "6"]
[White "bascheyaro"]
[Black "Artyom_ChessMate"]
[Result "1-0"]
[WhiteElo "2713"]
[BlackElo "2512"]
[TimeControl "180+1"]
[EndTime "11:04:38 PDT"]
[Termination "bascheyaro won on time"]

1. d4 {[%clk 0:03:00.9]} 1... d5 {[%clk 0:02:59.7]} 2. c4 {[%clk 0:03:01.2]}
2... e6 {[%clk 0:02:59.9]} 3. Nc3 {[%clk 0:03:01.7]} 3... Nf6 {[%clk 0:02:58]}
4. Nf3 {[%clk 0:03:02.3]} 4... Be7 {[%clk 0:02:55.1]} 5. Bg5 {[%clk 0:03:02.4]}
5... h6 {[%clk 0:02:54.5]} 6. Bxf6 {[%clk 0:03:02.3]} 6... Bxf6 {[%clk
0:02:55.4]} 7. e3 {[%clk 0:03:02.9]} 7... O-O {[%clk 0:02:51.3]} 8. h3 {[%clk
0:03:02.7]} 8... c6 {[%clk 0:02:47.6]} 9. Qc2 {[%clk 0:03:02.5]} 9... Nd7 {[%clk
0:02:46.1]} 10. cxd5 {[%clk 0:03:02.6]} 10... cxd5 {[%clk 0:02:44.8]} 11. Bd3
{[%clk 0:03:01.2]} 11... b6 {[%clk 0:02:35.5]} 12. Rc1 {[%clk 0:02:56.6]} 12...
Bb7 {[%clk 0:02:35.2]} 13. O-O {[%clk 0:02:56.6]} 13... Rc8 {[%clk 0:02:34]} 14.
Qa4 {[%clk 0:02:56.5]} 14... a6 {[%clk 0:02:19.9]} 15. Qb3 {[%clk 0:02:56.4]}
15... Qe7 {[%clk 0:02:12]} 16. a4 {[%clk 0:02:47.4]} 16... Rfd8 {[%clk
0:02:06.5]} 17. Na2 {[%clk 0:02:45.3]} 17... g6 {[%clk 0:01:46.5]} 18. Nb4
{[%clk 0:02:44.7]} 18... e5 {[%clk 0:01:15.6]} 19. Rxc8 {[%clk 0:02:37.5]} 19...
Rxc8 {[%clk 0:01:11.1]} 20. Nxd5 {[%clk 0:02:37.5]} 20... Bxd5 {[%clk
0:01:05.6]} 21. Qxd5 {[%clk 0:02:38.4]} 21... exd4 {[%clk 0:01:04.4]} 22. exd4
{[%clk 0:02:37.1]} 22... Rd8 {[%clk 0:00:58.5]} 23. Re1 {[%clk 0:02:26.1]} 23...
Qf8 {[%clk 0:00:46]} 24. Qb3 {[%clk 0:02:08.3]} 24... Kg7 {[%clk 0:00:45.8]} 25.
Bxa6 {[%clk 0:02:08]} 25... Nb8 {[%clk 0:00:43.2]} 26. Bb5 {[%clk 0:02:02.4]}
26... Bxd4 {[%clk 0:00:36.3]} 27. Nxd4 {[%clk 0:02:02.6]} 27... Rxd4 {[%clk
0:00:37.2]} 28. Qc3 {[%clk 0:02:03.1]} 28... Qc5 {[%clk 0:00:33.2]} 29. Re8
{[%clk 0:02:02.9]} 29... Nd7 {[%clk 0:00:14.7]} 30. Rd8 {[%clk 0:01:56.3]} 30...
Qe5 {[%clk 0:00:05.7]} 31. Rxd7 {[%clk 0:01:49.8]} 31... Rd1+ {[%clk 0:00:05.5]}
32. Rxd1 {[%clk 0:01:48.9]} 1-0

[Event "*** SCC Grand Prix: Titled Tuesday Blitz"]
[Site "Chess.com"]
[Date "2020.06.23"]
[Round "6"]
[White "Chessmasterzt"]
[Black "chenxiaoyuer"]
[Result "0-1"]
[WhiteElo "2575"]
[BlackElo "2378"]
[TimeControl "180+1"]
[EndTime "11:04:38 PDT"]
[Termination "chenxiaoyuer won by resignation"]

1. Nf3 {[%clk 0:02:54.6]} 1... Nf6 {[%clk 0:02:57.9]} 2. d4 {[%clk 0:02:53.6]}
2... g6 {[%clk 0:02:57.8]} 3. c4 {[%clk 0:02:53.4]} 3... Bg7 {[%clk 0:02:57.9]}
4. Nc3 {[%clk 0:02:54]} 4... O-O {[%clk 0:02:57.8]} 5. e4 {[%clk 0:02:53.8]}
5... d6 {[%clk 0:02:57.9]} 6. Be2 {[%clk 0:02:54.3]} 6... e5 {[%clk 0:02:57.5]}
7. O-O {[%clk 0:02:54.6]} 7... Nc6 {[%clk 0:02:55]} 8. d5 {[%clk 0:02:54.3]}
8... Ne7 {[%clk 0:02:54.9]} 9. b4 {[%clk 0:02:54.8]} 9... a5 {[%clk 0:02:53.8]}
10. Ba3 {[%clk 0:02:53.9]} 10... Nh5 {[%clk 0:02:52.7]} 11. g3 {[%clk
0:02:28.5]} 11... f5 {[%clk 0:02:50.1]} 12. Ng5 {[%clk 0:02:25.3]} 12... Nf6
{[%clk 0:02:48.5]} 13. Bf3 {[%clk 0:02:11.2]} 13... axb4 {[%clk 0:02:02.1]} 14.
Bxb4 {[%clk 0:02:10.6]} 14... h6 {[%clk 0:02:02.3]} 15. Nh3 {[%clk 0:01:56.8]}
15... fxe4 {[%clk 0:01:57.5]} 16. Bg2 {[%clk 0:01:57.1]} 16... Bg4 {[%clk
0:01:32.7]} 17. f3 {[%clk 0:01:57.3]} 17... exf3 {[%clk 0:01:31.9]} 18. Rxf3
{[%clk 0:01:58.2]} 18... e4 {[%clk 0:01:29.9]} 19. Rxf6 {[%clk 0:01:52.1]} 19...
Bxd1 {[%clk 0:01:24.3]} 20. Rxf8+ {[%clk 0:01:51.6]} 20... Qxf8 {[%clk
0:01:24.9]} 21. Rxd1 {[%clk 0:01:51.5]} 21... Nf5 {[%clk 0:00:57.1]} 22. Nf4
{[%clk 0:01:27.4]} 22... Ne3 {[%clk 0:00:52.7]} 23. Rd2 {[%clk 0:01:17.3]} 23...
Nxg2 {[%clk 0:00:44.9]} 24. Kxg2 {[%clk 0:01:13.4]} 24... g5 {[%clk 0:00:42.2]}
25. Nfe2 {[%clk 0:01:10.8]} 25... Qf3+ {[%clk 0:00:41.2]} 26. Kg1 {[%clk
0:01:09.1]} 26... e3 {[%clk 0:00:40.5]} 27. Rd1 {[%clk 0:01:08.6]} 27... Bxc3
{[%clk 0:00:37.6]} 28. Nxc3 {[%clk 0:01:07.8]} 28... Qf2+ {[%clk 0:00:36.6]} 29.
Kh1 {[%clk 0:01:07.6]} 29... e2 {[%clk 0:00:36]} 0-1

[Event "*** SCC Grand Prix: Titled Tuesday Blitz"]
[Site "Chess.com"]
[Date "2020.06.23"]
[Round "6"]
[White "bazar-wokzal"]
[Black "Korchmar_Vasiliy"]
[Result "0-1"]
[WhiteElo "2428"]
[BlackElo "2608"]
[TimeControl "180+1"]
[EndTime "11:04:42 PDT"]
[Termination "Korchmar_Vasiliy won by resignation"]

1. e4 {[%clk 0:03:00.9]} 1... c5 {[%clk 0:03:00.1]} 2. c3 {[%clk 0:03:00.7]}
2... Nf6 {[%clk 0:02:59.3]} 3. e5 {[%clk 0:03:00.1]} 3... Nd5 {[%clk 0:02:59.8]}
4. d4 {[%clk 0:03:00.1]} 4... cxd4 {[%clk 0:03:00.7]} 5. cxd4 {[%clk 0:03:00.5]}
5... e6 {[%clk 0:03:01]} 6. Nc3 {[%clk 0:02:59.1]} 6... Nxc3 {[%clk 0:03:00.3]}
7. bxc3 {[%clk 0:02:59.4]} 7... Qc7 {[%clk 0:02:59.6]} 8. Bd2 {[%clk 0:02:59.7]}
8... d6 {[%clk 0:03:00]} 9. f4 {[%clk 0:03:00.2]} 9... b6 {[%clk 0:02:50.6]} 10.
Nf3 {[%clk 0:03:00.4]} 10... Bb7 {[%clk 0:02:49.6]} 11. Bd3 {[%clk 0:03:00.4]}
11... Nd7 {[%clk 0:02:41.4]} 12. O-O {[%clk 0:02:59.8]} 12... Be7 {[%clk
0:02:33.9]} 13. f5 {[%clk 0:03:00.1]} 13... dxe5 {[%clk 0:02:23]} 14. fxe6
{[%clk 0:02:59.5]} 14... fxe6 {[%clk 0:02:23.9]} 15. Ng5 {[%clk 0:02:59]} 15...
O-O-O {[%clk 0:02:02.2]} 16. Nxe6 {[%clk 0:02:55.4]} 16... Qc6 {[%clk
0:02:02.4]} 17. Qg4 {[%clk 0:02:55.2]} 17... Rde8 {[%clk 0:01:20.3]} 18. Rf7
{[%clk 0:02:51.8]} 18... h5 {[%clk 0:01:12.6]} 19. Qh3 {[%clk 0:02:51]} 19... g5
{[%clk 0:01:02.8]} 20. Bxg5 {[%clk 0:02:19.9]} 20... Rhg8 {[%clk 0:00:54.6]} 21.
Bf5 {[%clk 0:01:54]} 21... Kb8 {[%clk 0:00:38.2]} 22. Rxe7 {[%clk 0:01:21.6]}
22... Rxe7 {[%clk 0:00:37.6]} 23. Re1 {[%clk 0:01:17.2]} 23... Rxe6 {[%clk
0:00:31.1]} 24. Bxe6 {[%clk 0:01:16]} 24... Rxg5 {[%clk 0:00:31.6]} 25. Bxd7
{[%clk 0:01:12.6]} 25... Rxg2+ {[%clk 0:00:30.6]} 26. Kf1 {[%clk 0:01:12]} 26...
Qc4+ {[%clk 0:00:28.9]} 0-1

[Event "*** SCC Grand Prix: Titled Tuesday Blitz"]
[Site "Chess.com"]
[Date "2020.06.23"]
[Round "6"]
[White "Ginger_GM"]
[Black "Philosopherrr"]
[Result "1-0"]
[WhiteElo "2668"]
[BlackElo "2481"]
[TimeControl "180+1"]
[EndTime "11:04:46 PDT"]
[Termination "Ginger_GM won by resignation"]

1. b3 {[%clk 0:02:52.3]} 1... Nf6 {[%clk 0:02:58.8]} 2. Bb2 {[%clk 0:02:50.1]}
2... g6 {[%clk 0:02:57.4]} 3. g3 {[%clk 0:02:49.2]} 3... Bg7 {[%clk 0:02:57.4]}
4. Bg2 {[%clk 0:02:48.6]} 4... O-O {[%clk 0:02:58.3]} 5. d3 {[%clk 0:02:47.6]}
5... d5 {[%clk 0:02:59.2]} 6. Nd2 {[%clk 0:02:46.6]} 6... Nc6 {[%clk 0:02:57.7]}
7. e3 {[%clk 0:02:46]} 7... e5 {[%clk 0:02:57.3]} 8. Ne2 {[%clk 0:02:45.6]} 8...
a5 {[%clk 0:02:55.1]} 9. a3 {[%clk 0:02:45.2]} 9... Be6 {[%clk 0:02:53.2]} 10.
h3 {[%clk 0:02:45]} 10... Qc8 {[%clk 0:02:49.6]} 11. g4 {[%clk 0:02:44.7]} 11...
Nd7 {[%clk 0:02:47.4]} 12. Ng3 {[%clk 0:02:43.8]} 12... Ne7 {[%clk 0:02:38]} 13.
Qe2 {[%clk 0:02:34.3]} 13... f5 {[%clk 0:02:35.4]} 14. gxf5 {[%clk 0:02:33.7]}
14... Nxf5 {[%clk 0:02:35.1]} 15. Nxf5 {[%clk 0:02:31]} 15... gxf5 {[%clk
0:02:32.6]} 16. Rg1 {[%clk 0:02:26.5]} 16... Kh8 {[%clk 0:02:32.1]} 17. O-O-O
{[%clk 0:02:16.8]} 17... a4 {[%clk 0:02:32]} 18. Qh5 {[%clk 0:02:05.4]} 18...
axb3 {[%clk 0:02:31.8]} 19. cxb3 {[%clk 0:01:51.7]} 19... Nc5 {[%clk 0:02:27.6]}
20. Kc2 {[%clk 0:01:38.5]} 20... Ra6 {[%clk 0:01:49.3]} 21. Bxd5 {[%clk
0:01:19.4]} 21... Nxd3 {[%clk 0:01:17]} 22. Rxg7 {[%clk 0:01:12.4]} 22... Kxg7
{[%clk 0:01:13.4]} 23. Rg1+ {[%clk 0:01:11.8]} 23... Kh8 {[%clk 0:01:13.4]} 24.
Kxd3 {[%clk 0:01:05.8]} 24... Bxd5 {[%clk 0:01:04.4]} 25. Bxe5+ {[%clk
0:01:03.6]} 25... Raf6 {[%clk 0:01:04.6]} 26. Qh6 {[%clk 0:00:49.5]} 26... Be4+
{[%clk 0:00:46.4]} 27. Kc3 {[%clk 0:00:41.7]} 1-0

[Event "*** SCC Grand Prix: Titled Tuesday Blitz"]
[Site "Chess.com"]
[Date "2020.06.23"]
[Round "6"]
[White "MartinMatthiesen"]
[Black "abykhovsky"]
[Result "0-1"]
[WhiteElo "2332"]
[BlackElo "2682"]
[TimeControl "180+1"]
[EndTime "11:04:47 PDT"]
[Termination "abykhovsky won by checkmate"]

1. d4 {[%clk 0:02:56.4]} 1... Nf6 {[%clk 0:02:58.6]} 2. c4 {[%clk 0:02:56.1]}
2... c5 {[%clk 0:02:59.5]} 3. d5 {[%clk 0:02:55.9]} 3... b5 {[%clk 0:02:57.8]}
4. cxb5 {[%clk 0:02:55.5]} 4... a6 {[%clk 0:02:57.8]} 5. bxa6 {[%clk 0:02:55.7]}
5... g6 {[%clk 0:02:58.2]} 6. Nc3 {[%clk 0:02:55.5]} 6... Bxa6 {[%clk
0:02:59.1]} 7. g3 {[%clk 0:02:53.4]} 7... d6 {[%clk 0:02:59.1]} 8. Bg2 {[%clk
0:02:53.6]} 8... Bg7 {[%clk 0:03:00]} 9. Nf3 {[%clk 0:02:53.7]} 9... Nbd7 {[%clk
0:03:00.9]} 10. Rb1 {[%clk 0:02:53.6]} 10... Nb6 {[%clk 0:03:01.8]} 11. b3
{[%clk 0:02:52.9]} 11... Bb7 {[%clk 0:03:01.5]} 12. Nh4 {[%clk 0:02:51.3]} 12...
O-O {[%clk 0:02:54.2]} 13. O-O {[%clk 0:02:50.8]} 13... Nfd7 {[%clk 0:02:54.2]}
14. Bb2 {[%clk 0:02:48.4]} 14... Bxc3 {[%clk 0:02:54.3]} 15. Bxc3 {[%clk
0:02:48]} 15... Rxa2 {[%clk 0:02:54.8]} 16. b4 {[%clk 0:02:41.3]} 16... c4
{[%clk 0:02:51.4]} 17. Qd4 {[%clk 0:02:27.7]} 17... f6 {[%clk 0:02:47.9]} 18.
Qg4 {[%clk 0:01:54.8]} 18... Qe8 {[%clk 0:02:35.5]} 19. e4 {[%clk 0:01:26.3]}
19... Ne5 {[%clk 0:02:32.3]} 20. Qd1 {[%clk 0:01:22.4]} 20... Qa4 {[%clk
0:02:28.6]} 21. Qd4 {[%clk 0:01:14.9]} 21... Qb5 {[%clk 0:02:12.5]} 22. f4
{[%clk 0:01:03.9]} 22... Nd3 {[%clk 0:02:08.4]} 23. Bh3 {[%clk 0:00:54.7]} 23...
Bc8 {[%clk 0:02:06]} 24. Bxc8 {[%clk 0:00:47.1]} 24... Rxc8 {[%clk 0:02:05.3]}
25. Ra1 {[%clk 0:00:37.2]} 25... Rca8 {[%clk 0:02:03.5]} 26. Rxa2 {[%clk
0:00:36.2]} 26... Rxa2 {[%clk 0:02:04.4]} 27. g4 {[%clk 0:00:24.3]} 27... Na4
{[%clk 0:01:59.6]} 28. g5 {[%clk 0:00:16.5]} 28... Nxc3 {[%clk 0:01:58.6]} 29.
Qxc3 {[%clk 0:00:15.9]} 29... Qxb4 {[%clk 0:01:58.6]} 30. Qxb4 {[%clk
0:00:09.7]} 30... Nxb4 {[%clk 0:01:59.5]} 31. gxf6 {[%clk 0:00:09.8]} 31... exf6
{[%clk 0:02:00]} 32. Rc1 {[%clk 0:00:10.4]} 32... Rc2 {[%clk 0:01:56.6]} 33. Ra1
{[%clk 0:00:10.4]} 33... Nd3 {[%clk 0:01:56.6]} 34. Ra8+ {[%clk 0:00:09.3]}
34... Kg7 {[%clk 0:01:56.4]} 35. Ra7+ {[%clk 0:00:08.6]} 35... Kh6 {[%clk
0:01:56]} 36. Rc7 {[%clk 0:00:04.4]} 36... Nxf4 {[%clk 0:01:54.9]} 37. Nf3
{[%clk 0:00:03.7]} 37... Nh3+ {[%clk 0:01:55]} 38. Kh1 {[%clk 0:00:03.2]} 38...
Nf4 {[%clk 0:01:54.1]} 39. Nd4 {[%clk 0:00:02.6]} 39... Rc1# {[%clk 0:01:53.7]}
0-1

[Event "*** SCC Grand Prix: Titled Tuesday Blitz"]
[Site "Chess.com"]
[Date "2020.06.23"]
[Round "6"]
[White "PavelShkapenko"]
[Black "Barmen_EV"]
[Result "1-0"]
[WhiteElo "2661"]
[BlackElo "2477"]
[TimeControl "180+1"]
[EndTime "11:04:54 PDT"]
[Termination "PavelShkapenko won by checkmate"]

1. e4 {[%clk 0:03:00.9]} 1... c5 {[%clk 0:02:50.6]} 2. c3 {[%clk 0:02:59.9]}
2... Nf6 {[%clk 0:02:49.7]} 3. e5 {[%clk 0:02:59.7]} 3... Nd5 {[%clk 0:02:50.1]}
4. d4 {[%clk 0:03:00]} 4... cxd4 {[%clk 0:02:51]} 5. cxd4 {[%clk 0:03:00.4]}
5... Nc6 {[%clk 0:02:51.2]} 6. Nc3 {[%clk 0:03:00.3]} 6... Nxc3 {[%clk
0:02:51.2]} 7. bxc3 {[%clk 0:03:00.8]} 7... d5 {[%clk 0:02:52.1]} 8. Bd3 {[%clk
0:03:00.1]} 8... g6 {[%clk 0:02:30.7]} 9. h4 {[%clk 0:02:53.5]} 9... Bg7 {[%clk
0:02:31.6]} 10. h5 {[%clk 0:02:53.7]} 10... Qa5 {[%clk 0:02:17]} 11. Bd2 {[%clk
0:02:52.9]} 11... Bd7 {[%clk 0:02:03.8]} 12. Ne2 {[%clk 0:02:43.9]} 12... gxh5
{[%clk 0:02:00.9]} 13. Nf4 {[%clk 0:02:42.7]} 13... O-O-O {[%clk 0:01:52.6]} 14.
Nxh5 {[%clk 0:02:42.1]} 14... Bf8 {[%clk 0:01:40.5]} 15. Qf3 {[%clk 0:02:38.7]}
15... Rg8 {[%clk 0:01:34.2]} 16. Bxh7 {[%clk 0:02:20.3]} 16... Bg4 {[%clk
0:01:10.3]} 17. Qxf7 {[%clk 0:02:11.9]} 17... Bxh5 {[%clk 0:01:08.6]} 18. Qxg8
{[%clk 0:02:11.8]} 18... Bh6 {[%clk 0:00:59.2]} 19. Qe6+ {[%clk 0:02:11.1]}
19... Kb8 {[%clk 0:00:57.8]} 20. Qxh6 {[%clk 0:02:09.8]} 20... Bg4 {[%clk
0:00:51.7]} 21. Qf4 {[%clk 0:02:00.7]} 21... Be6 {[%clk 0:00:33.2]} 22. Bd3
{[%clk 0:01:54.7]} 22... Rg8 {[%clk 0:00:27.4]} 23. Kf1 {[%clk 0:01:52.9]} 23...
a6 {[%clk 0:00:24.9]} 24. Rh6 {[%clk 0:01:52.6]} 24... Bd7 {[%clk 0:00:19.5]}
25. e6+ {[%clk 0:01:51.3]} 25... Qc7 {[%clk 0:00:19.4]} 26. exd7 {[%clk
0:01:49.8]} 26... Rd8 {[%clk 0:00:15.1]} 27. Rxc6 {[%clk 0:01:46.8]} 27... Qxf4
{[%clk 0:00:11.2]} 28. Bxf4+ {[%clk 0:01:46.4]} 28... Ka7 {[%clk 0:00:12.1]} 29.
Rc7 {[%clk 0:01:45.4]} 29... Kb6 {[%clk 0:00:12.4]} 30. Rb1+ {[%clk 0:01:45.1]}
30... Ka5 {[%clk 0:00:07.1]} 31. Rbxb7 {[%clk 0:01:39]} 31... Rxd7 {[%clk
0:00:08]} 32. Rc5+ {[%clk 0:01:38.6]} 32... Ka4 {[%clk 0:00:07.7]} 33. Bc2+
{[%clk 0:01:38.9]} 33... Ka3 {[%clk 0:00:01.1]} 34. Ra5# {[%clk 0:01:38.8]} 1-0